[Event "FIDE CB Open 2022"]
[Site "Ceske Budejovice"]
[Date "2022.07.06"]
[Round "6.2"]
[White "Librelato, Kathie Goulart"]
[Black "Velicka, Petr"]
[Result "1/2-1/2"]
[ECO "B11"]
[WhiteElo "2255"]
[BlackElo "2384"]
[Annotator "TA"]
[PlyCount "83"]
[EventDate "2022.07.01"]
[EventType "swiss"]
[EventCountry "CZE"]
[SourceTitle "playchess.com"]
[Source "ChessBase"]
[SourceQuality "1"]
[TimeControl "40/5400+30:1800+30"]

{[%evp 10,83,21,19,22,23,30,29,38,39,39,38,35,24,31,27,39,16,29,29,33,35,42,17,41,41,50,15,14,5,39,40,33,37,35,34,36,0,0,0,0,0,0,0,0,0,6,4,7,7,8,2,6,0,0,-7,0,0,0,0,0,0,21,0,0,0,0,0,0,0,0,0,0,-2,-2,-2]} 1. e4 {[%emt 0:00:06]} c6 {[%emt 0:00:15]} 2. Nc3 {[%emt 0:00:08]} d5 {[%emt 0:00:07]} 3. Nf3 {[%emt 0:00:05]} Bg4 {[%emt 0:00:10]} 4. h3 {[%emt 0:00:05]} Bxf3 {[%emt 0:00:07]} 5. Qxf3 {[%emt 0:00:04]} Nf6 {[%emt 0:00:07]} 6. Be2 {[%emt 0:00:51]} e6 {[%emt 0:01:46] B11: Caro-Kann: Two Knights Variation.} 7. O-O {[%emt 0:00:15]} Bd6 {[%emt 0:01:38]} 8. d4 {[%emt 0:01:54] [#] Threatens to win with e5.} dxe4 {[%emt 0:00:58] White has an edge.} 9. Nxe4 {[%emt 0:00:05]} Nxe4 {[%emt 0:00:12]} 10. Qxe4 {[%emt 0:00:05]} Nd7 {[%emt 0:00:18]} 11. Rd1 {[%emt 0:07:52] [#]} Nf6 $146 {[%emt 0:02:39]} ({Predecessor:} 11... O-O 12. Bd3 Nf6 13. Qf3 h6 14. a4 a5 15. c4 Qe7 16. c5 Bc7 17. Be3 Nd5 {½-½ (32) Heyn,W (1966)-Langhans,H (2052) DESC email 2004}) 12. Qf3 {[%emt 0:00:05]} Bc7 {[%emt 0:02:08]} 13. c4 {[%emt 0:06:35]} Qd6 {[%emt 0:01:11] ( -> ...Qh2+)} 14. g3 {[%emt 0:00:10]} O-O {[%emt 0:00:50]} 15. Bg5 {[%emt 0:05:37]} Qe7 {[%emt 0:04:32]} 16. d5 {[%emt 0:15:46]} cxd5 {[%emt 0:01:23]} 17. cxd5 {[%emt 0:00:06]} Rad8 {[%emt 0:00:33]} 18. Bc4 {[%emt 0:08:41] aiming for dxe6.} e5 {[%emt 0:06:37]} 19. Rac1 {[%emt 0:04:24]} h6 {[%emt 0:04:05]} 20. Bxf6 {[%emt 0:10:31]} Qxf6 {[%emt 0:00:11]} 21. Qxf6 {[%emt 0:00:07]} gxf6 {[%emt 0:00:04] [#]} 22. Ba6 $1 {[%emt 0:00:14]} Bd6 {[%emt 0:01:25]} (22... Ba5 23. Bd3) 23. Bxb7 {[%emt 0:00:26]} Rb8 {[%emt 0:00:06] The position is equal.} 24. Rc6 {[%emt 0:01:56]} Rfd8 {[%emt 0:03:54]} 25. Ba6 {[%emt 0:00:06]} Rxb2 {[%emt 0:00:17]} 26. Bc4 {[%emt 0:01:27]} Kg7 {[%emt 0:04:16]} 27. Bb3 {[%emt 0:03:04]} a5 {[%emt 0:01:12]} 28. Rc2 {[%emt 0:04:42]} Rxc2 {[%emt 0:01:58]} 29. Bxc2 $11 {[%emt 0:00:03][%mdl 4096] Endgame KRB-KRB} Kf8 {[%emt 0:01:58]} 30. Rb1 {[%emt 0:04:54]} Bb4 {[%emt 0:04:38]} 31. Bb3 {[%emt 0:01:56]} Rc8 {[%emt 0:00:31]} 32. Kg2 {[%emt 0:01:40]} Rc3 {[%emt 0:00:27]} 33. Rb2 {[%emt 0:02:42]} Ke7 {[%emt 0:02:31]} 34. Re2 {[%emt 0:06:36]} Rd3 {[%emt 0:03:06]} 35. Rc2 {[%emt 0:00:39]} Rc3 {[%emt 0:00:36]} 36. Re2 {[%emt 0:01:57]} Bc5 {[%emt 0:03:54]} 37. Rc2 {[%emt 0:01:19]} Rxc2 {[%emt 0:00:26]} 38. Bxc2 {[%emt 0:00:03]} Kd6 {[%emt 0:00:14]} 39. g4 {[%emt 0:01:28]} Kxd5 {[%emt 0:01:35]} 40. Bb3+ {[%emt 0:00:04]} Ke4 {[%emt 0:00:42]} 41. Bxf7 {[%emt 0:30:15]} Kf4 {[%emt 0:30:16]} 42. f3 {[%emt 0:00:10] Weighted Error Value: White=0.06 (flawless) /Black=0.05 (flawless)} 1/2-1/2

[Event "FIDE CB Open 2022"]
[Site "Ceske Budejovice"]
[Date "2022.07.06"]
[Round "6.3"]
[White "Neuman, Petr"]
[Black "Johannsson, Birkir Isak"]
[Result "1-0"]
[ECO "B55"]
[WhiteElo "2378"]
[BlackElo "2131"]
[Annotator "TA"]
[PlyCount "103"]
[EventDate "2022.07.01"]
[EventType "swiss"]
[EventCountry "CZE"]
[SourceTitle "playchess.com"]
[Source "ChessBase"]
[SourceQuality "1"]
[TimeControl "40/5400+30:1800+30"]

{[%evp 9,103,23,28,21,28,20,56,53,63,66,81,71,86,85,93,89,111,104,103,119,117,110,109,39,120,34,59,-8,81,0,65,13,39,8,76,89,84,71,98,75,71,73,81,80,90,93,94,95,89,42,39,38,44,50,48,50,40,48,46,50,56,56,56,56,56,56,56,56,66,56,56,71,91,91,91,91,102,102,102,102,133,136,227,227,220,229,225,204,420,393,568,547,5647,5647,5322,5289]} 1. e4 {[%emt 0:00:08]} c5 {[%emt 0:01:41]} 2. Nf3 {[%emt 0:00:06]} d6 {[%emt 0:00:10]} 3. d4 {[%emt 0:00:04]} cxd4 {[%emt 0:00:14]} 4. Nxd4 {[%emt 0:00:00]} Nf6 {[%emt 0:00:30]} 5. f3 {[%emt 0:00:23]} e6 {[%emt 0:00:30]} 6. Be3 {[%emt 0:00:30] B55: Sicilian: 2...d6 3 d4 cxd4 4 Nxd4 Nf6 5 f3.} Be7 {[%emt 0:00:57]} 7. Qd2 {[%emt 0:00:51]} h5 {[%emt 0:07:03] Prevents g4.} 8. c4 {[%emt 0:02:24] White is slightly better.} a6 {[%emt 0:00:13]} 9. Nc3 {[%emt 0:00:08]} Qc7 {[%emt 0:00:20] [#]} 10. Be2 $146 {[%emt 0:00:10]} ({Predecessor:} 10. a3 Nbd7 11. Rc1 b6 12. Be2 Bb7 13. b4 Rc8 14. O-O Qb8 15. Rc2 h4 16. Rb1 {0-1 (38) Ognean,M (2298)-Manolache,M (2541) Chess.com INT 2020}) 10... b6 {[%emt 0:01:53]} 11. O-O {[%emt 0:01:16]} Bb7 {[%emt 0:00:30]} 12. a4 {[%emt 0:00:22]} Nbd7 {[%emt 0:03:10]} 13. a5 {[%emt 0:01:27]} bxa5 {[%emt 0:08:47]} 14. Nb3 {[%emt 0:00:36]} Rb8 {[%emt 0:00:24][%cal Ob7e4]} 15. Nxa5 {[%emt 0:00:20] White is more active.} Ba8 {[%emt 0:00:01]} 16. b4 {[%emt 0:11:12]} (16. Rfc1 $16) 16... O-O {[%emt 0:03:48]} (16... d5 $1 $14) 17. Rfb1 {[%emt 0:00:11]} ({Better is} 17. Rfc1 $16) 17... Rfd8 {[%emt 0:11:13][%cal Od6d5]} 18. Qe1 {[%emt 0:00:50]} (18. b5 $14) 18... Ne5 {[%emt 0:16:11] [#]} (18... d5 $1 $11 {keeps the balance.}) 19. Bd4 {[%emt 0:15:12]} (19. b5 $1 $16) 19... Nfd7 {[%emt 0:05:29]} (19... d5 $1 $11 20. Qg3 Nxf3+ 21. gxf3 Qxg3+ 22. hxg3 dxe4) 20. h3 {[%emt 0:08:53]} ({White should try} 20. Bf2 $14) 20... Bf6 $11 {[%emt 0:05:30][%cal Oe5f3]} 21. Qf2 {[%emt 0:01:04]} Nc6 {[%emt 0:07:07]} (21... Ng6 $11) 22. Nxc6 {[%emt 0:01:05]} Qxc6 {[%emt 0:00:13]} 23. Bxf6 {[%emt 0:08:14]} Nxf6 {[%emt 0:00:10]} 24. c5 {[%emt 0:01:04]} Bb7 {[%emt 0:09:03]} 25. Na4 {[%emt 0:00:46]} Nd7 {[%emt 0:01:49]} 26. Bf1 {[%emt 0:07:20]} Ba8 {[%emt 0:02:00]} 27. cxd6 {[%emt 0:03:06]} (27. Qd4 {seems wilder.} dxc5 28. Nxc5 Nxc5 29. Qxc5 Qxc5+ 30. bxc5 Rbc8 31. Rc1) 27... Qxd6 {[%emt 0:00:46]} 28. Nc5 {[%emt 0:00:31]} Nxc5 {[%emt 0:04:18]} 29. bxc5 {[%emt 0:02:08]} (29. Qxc5 $16 Bb7 30. Qxh5) 29... Qe5 $14 {[%emt 0:00:14]} 30. Rxb8 {[%emt 0:01:05]} Rxb8 {[%emt 0:00:12]} 31. Rxa6 {[%emt 0:00:13]} Rc8 {[%emt 0:01:00]} 32. Qe3 {[%emt 0:03:49]} Bc6 {[%emt 0:03:33]} 33. Ra3 {[%emt 0:01:48]} h4 {[%emt 0:01:23]} 34. Qc3 {[%emt 0:01:04]} Qg5 {[%emt 0:00:44]} 35. Ra6 {[%emt 0:01:07]} Bb7 {[%emt 0:01:45]} 36. Ra5 {[%emt 0:00:08]} Bc6 {[%emt 0:00:29]} 37. Ra1 {[%emt 0:05:48]} Be8 {[%emt 0:00:24]} 38. Rc1 {[%emt 0:00:45]} Bc6 {[%emt 0:00:28]} 39. Rb1 {[%emt 0:02:32]} Be8 {[%emt 0:00:56]} 40. e5 $1 {[%emt 0:00:50]} Qe7 {[%emt 0:02:51]} 41. Rc1 {[%emt 0:30:20]} Bc6 {[%emt 0:06:09]} 42. Qe3 {[%emt 0:00:00]} Bd5 {[%emt 0:03:42]} 43. Ba6 {[%emt 0:00:00]} Rc7 {[%emt 0:02:52]} 44. Bb5 {[%emt 0:00:00]} Rc8 {[%emt 0:00:44]} 45. c6 $36 {[%emt 0:00:00][%mdl 2048] Black is under strong pressure.} Qb4 {[%emt 0:06:34]} (45... Rc7 $16 {is a better defense.} 46. Rc5 Rc8) 46. Qc5 $18 {[%emt 0:00:00]} Qxc5+ {[%emt 0:04:48]} 47. Rxc5 {[%emt 0:00:00] [#] And now c7 would win. KRB-KRB} Rc7 {[%emt 0:00:04]} 48. Kf2 {[%emt 0:00:00] Strongly threatening Rc2.} g5 $2 {[%emt 0:02:36]} (48... f6 {keeps fighting.} 49. exf6 gxf6) 49. Ke3 {[%emt 0:00:00]} Kg7 {[%emt 0:00:09]} (49... Kf8 {was necessary.} 50. Rc1 Ke7) 50. Kd4 {[%emt 0:00:00] White is clearly winning.} f6 {[%emt 0:00:55]} 51. Rxd5 {[%emt 0:00:00]} exd5 {[%emt 0:00:08]} 52. Kxd5 {[%emt 0:00:00] Weighted Error Value: White=0.15 (very precise) /Black=0.27 (precise)} 1-0

[Event "FIDE CB Open 2022"]
[Site "Ceske Budejovice"]
[Date "2022.07.06"]
[Round "6.4"]
[White "Zima, Jan"]
[Black "Heimisson, Hilmir Freyr"]
[Result "1-0"]
[ECO "C51"]
[WhiteElo "2134"]
[BlackElo "2281"]
[Annotator "TA"]
[PlyCount "87"]
[EventDate "2022.07.01"]
[EventType "swiss"]
[EventCountry "CZE"]
[SourceTitle "playchess.com"]
[Source "ChessBase"]
[SourceQuality "1"]
[TimeControl "40/5400+30:1800+30"]

{[%evp 12,87,0,-32,-3,-8,-12,-19,-5,-14,-9,-6,-11,-10,10,2,28,2,6,2,0,0,0,9,17,17,38,0,69,-3,-12,-918,-8,-3,-5,-45,-10,-102,-51,-90,-81,-204,-183,-237,-179,-188,-172,-155,-65,-65,-67,-58,82,-125,118,152,106,-56,48,8,191,0,447,-341,643,616,740,737,29936,29944,29949,6151,6111,6103,5097,5065,29992,29993]} 1. e4 {[%emt 0:00:07]} e5 {[%emt 0:00:11]} 2. Nf3 {[%emt 0:00:18]} Nc6 {[%emt 0:02:30]} 3. Bc4 {[%emt 0:00:00]} Bc5 {[%emt 0:01:47]} 4. b4 {[%emt 0:00:00]} Bxb4 {[%emt 0:01:06]} 5. c3 {[%emt 0:00:15]} Be7 {[%emt 0:00:58]} 6. d4 {[%emt 0:00:07]} Na5 {[%emt 0:00:16]} 7. Be2 {[%emt 0:07:50]} d6 {[%emt 0:00:10] is more profitable than 7...exd4 at the moment. C51: Evans Gambit: Declined and Accepted without 5...Ba5.} 8. Qa4+ {[%emt 0:02:30]} c6 {[%emt 0:00:44]} 9. dxe5 {[%emt 0:00:29]} dxe5 {[%emt 0:17:58] The position is equal.} 10. Nxe5 {[%emt 0:04:53]} Nf6 {[%emt 0:03:59]} 11. O-O {[%emt 0:02:55]} Qc7 {[%emt 0:15:39]} 12. Nf3 {[%emt 0:24:06]} b5 {[%emt 0:05:46]} 13. Qc2 {[%emt 0:20:10]} Bg4 {[%emt 0:04:30] [#]} 14. a4 $146 {[%emt 0:00:30]} ({Predecessor:} 14. Nbd2 O-O 15. c4 Nxc4 16. Nxc4 bxc4 17. Qxc4 Nd7 18. Bb2 Bxf3 19. Bxf3 Bd6 {½-½ (19) Yoo,C (2535)-Swiercz,D (2665) San Salvador 2022}) 14... a6 {[%emt 0:00:30]} 15. axb5 {[%emt 0:00:30]} axb5 {[%emt 0:06:34]} 16. Nbd2 {[%emt 0:00:10]} O-O {[%emt 0:02:14]} 17. Bd3 {[%emt 0:02:53]} h6 {[%emt 0:02:03]} 18. h3 {[%emt 0:13:11]} Be6 {[%emt 0:00:30]} 19. Re1 {[%emt 0:00:30]} b4 {[%emt 0:00:30]} (19... Nd7 $11) 20. e5 {[%emt 0:00:30]} ({White should try} 20. cxb4 $14 Bxb4 21. Ba3 Bxa3 22. Rxa3) 20... b3 $11 {[%emt 0:00:30]} 21. c4 $2 {[%emt 0:00:30][%mdl 8192]} Nd5 $2 {[%emt 0:00:30]} ({Better is} 21... bxc2 $19 22. exf6 Bxf6) 22. Qb1 {[%emt 0:00:31]} (22. Nxb3 $2 Nb4 23. Qd1 (23. Bh7+ $2 Kh8 $19) 23... Nxd3 24. Qxd3 Bxc4 $19) 22... Nb4 {[%emt 0:01:02]} 23. Bh7+ {[%emt 0:04:21]} Kh8 {[%emt 0:00:06] Threatening ...Qb6.} 24. Nd4 {[%emt 0:01:01]} (24. Be4 $11 {remains equal.}) 24... Rad8 {[%emt 0:11:44]} (24... Na2 $17 25. Bd3 Nxc1 26. Rxc1 Qxe5 27. N4xb3 Nxb3 28. Nxb3 Bd6) 25. Nxe6 {[%emt 0:03:47]} fxe6 {[%emt 0:00:06]} 26. Re2 {[%emt 0:02:37]} (26. Bg6 $17) 26... Bc5 $19 {[%emt 0:05:54] Strongly threatening ...Na2.} 27. Bg6 {[%emt 0:05:26]} (27. Be4 $142) 27... Qb6 {[%emt 0:02:43]} 28. Nf3 {[%emt 0:02:53]} Rd1+ {[%emt 0:04:18]} 29. Kh2 {[%emt 0:00:04]} Bxf2 {[%emt 0:01:35]} (29... Na2 $17 30. Rexa2 bxa2 31. Qxa2 Nb3) 30. Qe4 $1 $15 {[%emt 0:00:15][%cal Oc1h6]} Bg1+ {[%emt 0:08:24]} 31. Kg3 {[%emt 0:00:05][%cal Oc1h6] Hoping for Bxh6!} Qd8 {[%emt 0:00:24]} (31... Na2 $15 {stays ahead.} 32. Bxh6 Rd4 33. Nxd4 Qxd4 34. Qxd4 Bxd4) 32. Rd2 $2 {[%emt 0:01:35] [#]} (32. Qg4 $1 $16 {[%cal Oc1g5] is forced if you want to stay better. Black must now prevent Bg5!} Na2 33. Bxh6 $1 gxh6 34. Qh5) 32... Rxd2 $2 {[%emt 0:00:40]} (32... Rxf3+ $1 $17 {[%mdl 512] stays on course.} 33. Kxf3 Rf1+ 34. Ke2 Qf8 $1) 33. Bxd2 $16 {[%emt 0:00:03] Really sharp! This bishop pair is nice.} Bc5 {[%emt 0:00:16]} 34. Qe1 $2 {[%emt 0:00:59]} (34. Ra4 $16) 34... Qb6 {[%emt 0:00:24]} (34... Nd3 $15 35. Bxd3 Qxd3 36. Bxa5 Be3) 35. Ra4 {[%emt 0:00:18][%cal Rd2b4]} Rb8 $2 {[%emt 0:00:30] [#]} (35... Nc2 $1 $11 {and Black stays safe.} 36. Bxc2 (36. Bxa5 Nxe1 37. Bxb6 Bxb6 $11) 36... bxc2 37. Rxa5 Rd8) 36. Kh2 $2 {[%emt 0:01:38]} (36. Bb1 $1 $18) 36... Bf2 $2 {[%emt 0:00:48][%mdl 8192]} (36... Nxc4 $11 37. Bxh6 gxh6) 37. Rxb4 $4 {[%emt 0:00:27][%mdl 8192]} Qxb4 $4 {[%emt 0:00:36][%mdl 8192]} (37... Bxe1 $19 38. Rxb6 Rxb6 39. Bxe1 Nxc4) 38. Qxf2 $18 {[%emt 0:00:09]} Qa3 {[%emt 0:00:27]} 39. Qh4 {[%emt 0:00:28] And now Nd4 would win.} Kg8 {[%emt 0:00:18] [#]} 40. Bxh6 $1 {[%emt 0:00:57][%mdl 512]} gxh6 {[%emt 0:00:39]} 41. Qxh6 {[%emt 0:09:46] White wants to mate with Qh7+.} Qe7 {[%emt 0:07:07]} 42. Ng5 {[%emt 0:00:31] Bh7+ would kill now.} Rb7 {[%emt 0:01:54]} 43. Bh7+ {[%emt 0:05:03]} Kh8 {[%emt 0:00:55]} 44. Bf5+ {[%emt 0:01:28][%mdl 64] Discovered Attack. A wild game.  Weighted Error Value: White=0.78/Black=1.21} 1-0

[Event "FIDE CB Open 2022"]
[Site "Ceske Budejovice"]
[Date "2022.07.06"]
[Round "6.5"]
[White "Puncochar, Jiri"]
[Black "Hrbek, Stepan"]
[Result "0-1"]
[ECO "B88"]
[WhiteElo "2020"]
[BlackElo "2272"]
[Annotator "TA"]
[PlyCount "78"]
[EventDate "2022.07.01"]
[EventType "swiss"]
[EventCountry "CZE"]
[SourceTitle "playchess.com"]
[Source "ChessBase"]
[SourceQuality "1"]
[TimeControl "40/5400+30:1800+30"]

{[%evp 13,78,16,37,26,37,26,23,21,27,0,14,-22,-23,-9,-8,-27,0,0,0,0,-16,-26,-24,-25,0,-12,0,-30,-21,-68,-53,-60,-62,-47,-49,-100,-95,-97,-73,-140,-116,-180,-179,-181,-174,-192,-173,-281,-275,-286,-283,-465,-460,-531,-515,-604,-384,-733,-727,-856,-854,-968,-808,-1048,-1006,-1202,-1179]} 1. e4 {[%emt 0:00:08]} c5 {[%emt 0:00:11]} 2. Nf3 {[%emt 0:00:05]} d6 {[%emt 0:00:39]} 3. d4 {[%emt 0:00:13]} cxd4 {[%emt 0:00:07]} 4. Nxd4 {[%emt 0:00:02]} Nf6 {[%emt 0:00:15]} 5. Nc3 {[%emt 0:00:06]} Nc6 {[%emt 0:00:06]} 6. Bc4 {[%emt 0:03:30]} e6 {[%emt 0:00:18]} 7. O-O {[%emt 0:01:04]} a6 {[%emt 0:00:40]} 8. Nxc6 {[%emt 0:00:53] B88: Sicilian: Sozin Attack.} bxc6 {[%emt 0:00:19]} 9. Qe2 {[%emt 0:01:12]} Be7 {[%emt 0:05:46]} 10. Rd1 {[%emt 0:01:41] [#] White has an edge.} O-O $146 {[%emt 0:11:45]} ({Predecessor:} 10... Qc7 11. Bf4 e5 12. Bg5 Bg4 13. f3 Be6 14. Kh1 O-O 15. Bxa6 Qb6 16. Bc4 Ng4 17. fxg4 Bxg5 {1-0 (26) Woelfelschneider,P (2218)-Bernal Varela,N (2204) IECG email 2006}) 11. Bf4 {[%emt 0:10:15][%cal Of4d6]} d5 {[%emt 0:00:43]} 12. e5 {[%emt 0:04:55]} Nd7 {[%emt 0:00:54][%cal Bf6d7,Bd7c5,Bc5d3][%mdl 32]} 13. Bd3 {[%emt 0:00:26]} Nc5 {[%emt 0:03:02] Prevents Na4.} 14. Qh5 {[%emt 0:06:00][%csl Gd3][%cal Rh5h7]} Nxd3 {[%emt 0:04:17]} (14... g6 $5 {[%cal Rg6h5]} 15. Qh6 Re8 $11) 15. Rxd3 {[%emt 0:00:07] Threatens to win with Rh3.} g6 $1 {[%emt 0:00:18]} 16. Qh6 {[%emt 0:02:40]} f5 {[%emt 0:05:30]} 17. Rg3 {[%emt 0:11:27][%cal Oh2h4]} Rf7 {[%emt 0:02:55]} 18. Bg5 {[%emt 0:02:46]} Qf8 {[%emt 0:09:18]} 19. Qxf8+ {[%emt 0:02:56]} Bxf8 {[%emt 0:02:32]} 20. Bf6 {[%emt 0:00:29]} Rb8 {[%emt 0:06:14]} 21. Na4 {[%emt 0:01:53]} (21. b3 $11) 21... c5 $15 {[%emt 0:10:06]} 22. b3 {[%emt 0:06:29]} Bd7 {[%emt 0:03:07] ...Bxa4 is the strong threat.} 23. Nc3 {[%emt 0:01:04]} d4 {[%emt 0:03:51]} 24. Ne2 {[%emt 0:00:29] [#] Black continues to play with concentration.} ({White should try} 24. Nb1 $15) 24... Rxf6 $1 $17 {[%emt 0:00:08]} 25. exf6 {[%emt 0:00:07] [#]} e5 $1 {[%emt 0:00:08]} 26. c3 {[%emt 0:11:43]} (26. Re1 $142) 26... Bb5 {[%emt 0:04:17]} 27. c4 {[%emt 0:02:52]} (27. Kf1 $17 {is a better defense.}) 27... Bc6 $19 {[%emt 0:00:15]} 28. Rd3 {[%emt 0:01:35]} Kf7 {[%emt 0:07:00]} 29. Rdd1 {[%emt 0:05:41]} Kxf6 {[%emt 0:01:02]} 30. f3 {[%emt 0:07:05]} (30. Rd2 {keeps fighting.}) 30... Bh6 {[%emt 0:01:39]} 31. h4 {[%emt 0:03:36]} e4 {[%emt 0:01:11]} 32. fxe4 $2 {[%emt 0:00:51]} (32. f4) 32... fxe4 {[%emt 0:02:34][%cal Bf5e4,Be4e3][%mdl 32]} 33. Rf1+ {[%emt 0:00:30]} Ke5 {[%emt 0:02:12]} 34. Rf7 {[%emt 0:00:32]} d3 {[%emt 0:04:02][%cal Bd4d3,Bd3d2][%mdl 32]} 35. Ng3 $2 {[%emt 0:02:13]} (35. Re7+ Kd6 36. Rxh7 Be3+ 37. Kh2) 35... Rb7 {[%emt 0:00:15] Black is clearly winning.} 36. Rff1 {[%emt 0:05:21]} e3 {[%emt 0:00:55]} 37. Rfe1 {[%emt 0:01:14]} Kd4 {[%emt 0:03:10]} 38. Red1 {[%emt 0:03:49]} d2 {[%emt 0:00:49] And now ...Kd3 would win.} 39. Rab1 {[%emt 0:01:03]} Kd3 {[%emt 0:00:26] Weighted Error Value: White=0.60/Black=0.14 (very precise)} 0-1

[Event "FIDE CB Open 2022"]
[Site "Ceske Budejovice"]
[Date "2022.07.06"]
[Round "6.6"]
[White "Maryasin, Boris"]
[Black "Valantiejus, Vaidotas"]
[Result "1/2-1/2"]
[ECO "D01"]
[WhiteElo "2260"]
[BlackElo "2062"]
[Annotator "TA"]
[PlyCount "86"]
[EventDate "2022.07.01"]
[EventType "swiss"]
[EventCountry "CZE"]
[SourceTitle "playchess.com"]
[Source "ChessBase"]
[SourceQuality "1"]
[TimeControl "40/5400+30:1800+30"]

{[%evp 12,86,3,-10,0,-11,14,14,23,14,30,22,38,12,37,9,25,0,6,0,0,0,0,0,0,0,-15,-101,-85,-147,-155,-146,-160,-172,-163,-260,9,-50,-3,-3,-3,-3,-3,-11,0,0,1,-5,0,0,22,-7,-13,-8,-9,-7,0,0,23,26,70,78,75,61,74,67,79,68,56,0,2,0,0,0,0,0,32]} 1. d4 {[%emt 0:00:13]} d5 {[%emt 0:00:38]} 2. Nc3 {[%emt 0:00:20]} Nf6 {[%emt 0:00:34]} 3. Bg5 {[%emt 0:00:13]} h6 {[%emt 0:00:55]} 4. Bxf6 {[%emt 0:00:25]} exf6 {[%emt 0:00:08]} 5. e4 {[%emt 0:00:43]} dxe4 {[%emt 0:05:31]} 6. Nxe4 {[%emt 0:00:22]} Be7 {[%emt 0:01:09]} 7. Nf3 {[%emt 0:01:32]} O-O {[%emt 0:00:27] D01: Veresov Opening.} 8. Bd3 {[%emt 0:01:19] [#]} Re8 $146 {[%emt 0:01:18]} (8... c5 $5) ({Predecessor:} 8... Bb4+ 9. c3 Bd6 10. O-O c6 11. Re1 Bc7 12. Ng3 g6 13. Qb3 Kg7 14. Rad1 b6 15. Rd2 {1-0 (27) Zivkovic,M (1988)-Mujcinovic,M (1780) Lukavac 2016}) 9. O-O {[%emt 0:00:45]} Bf8 {[%emt 0:04:04]} 10. Re1 {[%emt 0:01:01]} Nc6 {[%emt 0:01:37]} 11. c3 {[%emt 0:01:24]} Be6 {[%emt 0:05:16]} 12. b4 {[%emt 0:04:08]} Rb8 {[%emt 0:22:30]} 13. a4 {[%emt 0:09:04]} Ne7 {[%emt 0:05:27]} 14. Nc5 {[%emt 0:04:46]} Bd5 {[%emt 0:02:41]} 15. Nh4 {[%emt 0:01:54]} (15. Bb5 $5 {[%cal Rb5e8]}) 15... b6 {[%emt 0:04:38]} 16. Na6 {[%emt 0:02:01]} Rc8 {[%emt 0:02:17]} 17. Qg4 {[%emt 0:04:58]} g6 {[%emt 0:06:30]} 18. Re3 {[%emt 0:01:03]} h5 {[%emt 0:03:04]} 19. Qf4 {[%emt 0:02:23]} (19. Qh3 $11 {keeps the balance.}) 19... Qd6 $17 {[%emt 0:05:13]} 20. Qxd6 {[%emt 0:02:26]} (20. Qg3 $142) 20... cxd6 {[%emt 0:00:02]} 21. Bb5 {[%emt 0:00:43]} Red8 {[%emt 0:00:23]} 22. Rae1 {[%emt 0:09:01]} Be6 {[%emt 0:00:31]} 23. Rg3 {[%emt 0:04:44]} (23. Rd3 $142) 23... Nf5 $2 {[%emt 0:08:49] [#]} (23... g5 $19 {Threatens to win with ...Kh8.} 24. c4 Bxc4) 24. d5 {[%emt 0:03:09]} ({White should try} 24. Nxf5 $11 Bxf5 25. c4) 24... Nxh4 {[%emt 0:01:45]} (24... Nxg3 $15 25. dxe6 fxe6 26. hxg3 (26. fxg3 Kf7 $15) 26... Kf7) 25. dxe6 $11 {[%emt 0:00:07]} fxe6 {[%emt 0:00:08]} 26. Rxe6 {[%emt 0:01:42]} Kf7 {[%emt 0:00:10]} 27. Re1 {[%emt 0:01:41]} Nf5 {[%emt 0:00:35]} 28. Rd3 {[%emt 0:00:09]} d5 {[%emt 0:04:27]} 29. h3 {[%emt 0:02:25]} Bd6 {[%emt 0:01:44]} 30. Red1 {[%emt 0:03:14]} Be5 {[%emt 0:02:01]} 31. g4 {[%emt 0:02:49]} (31. c4 $5) 31... hxg4 {[%emt 0:00:20]} 32. hxg4 {[%emt 0:00:03]} Ne7 {[%emt 0:00:29] Threatening ...Rh8.} 33. c4 $1 {[%emt 0:00:28]} d4 {[%emt 0:00:22]} 34. c5 {[%emt 0:01:07]} bxc5 {[%emt 0:00:12] [#] And now ...c4 would win.} 35. Nxc5 {[%emt 0:00:19] Hoping for Bc4+.} g5 {[%emt 0:05:29]} 36. Bc4+ {[%emt 0:01:11]} Kg6 {[%emt 0:00:46]} 37. Rh3 {[%emt 0:00:57] Strongly threatening Bd3+. White is much more active.} Rh8 {[%emt 0:00:51]} 38. Bd3+ {[%emt 0:01:31]} Kf7 {[%emt 0:00:43]} 39. Rxh8 {[%emt 0:00:31]} Rxh8 {[%emt 0:00:02]} 40. b5 {[%emt 0:01:08] Inhibits Nc6.} (40. Bc4+ $14 Kg6 41. Kg2) 40... Rc8 {[%emt 0:01:44] The position is equal.} 41. Ne4 {[%emt 0:30:32]} Nd5 {[%emt 0:33:21]} 42. a5 {[%emt 0:04:15]} Nc3 {[%emt 0:00:00]} 43. Nxc3 {[%emt 0:00:00]} Rxc3 {[%emt 0:00:00] Weighted Error Value: White=0.18 (very precise) /Black=0.21 (precise)} 1/2-1/2